bitfinex-derivatives/quotes_BTCF0:USTF0_20250720
["timestamp","ask_amount","ask_price","bid_price","bid_amount"]
[1752981961797,0.88009633,117890.0,117880.0,0.81875152]
[1752981962091,1.04965363,117890.0,117880.0,0.6181416]
[1752981962590,1.04957363,117890.0,117880.0,0.6181416]
[1752981962890,1.04945363,117890.0,117880.0,0.81875152]
[1752981963485,1.04945353,117890.0,117880.0,0.6181416]
[1752981963789,1.04913353,117890.0,117880.0,0.81875152]
[1752981964792,0.23877633,117890.0,117880.0,0.81875152]
[1752981964990,0.87937633,117890.0,117880.0,0.82186722]
[1752981965286,0.23877633,117890.0,117880.0,1.19186722]
[1752981965485,0.20264633,117890.0,117880.0,1.36152322]
[1752981965684,0.03035,117910.0,117900.0,0.2477329]
[1752981965883,0.04817633,117910.0,117900.0,0.80914282]
[1752981966086,0.85978493,117910.0,117900.0,0.80914282]
[1752981966590,0.24397493,117910.0,117900.0,0.80914282]
[1752981966789,0.07444633,117910.0,117900.0,0.80914282]
[1752981966985,0.05097633,117910.0,117900.0,0.80914282]
[1752981967191,0.05597633,117910.0,117900.0,0.80914282]
[1752981967793,0.05897633,117910.0,117900.0,0.80914282]
[1752981969592,0.08244633,117910.0,117900.0,0.9693329]
[1752981969786,0.08244633,117910.0,117900.0,1.16994282]
[1752981970797,0.06162,117910.0,117900.0,1.17094282]
[1752981971395,0.2311486,117910.0,117900.0,1.17094282]
[1752981971593,0.2261486,117910.0,117900.0,1.17094282]
[1752981971799,0.2585086,117910.0,117900.0,1.17094282]
[1752981972992,0.2585086,117910.0,117900.0,1.17107199]
[1752981973193,0.08898,117910.0,117900.0,1.17107199]
[1752981976600,0.2585086,117910.0,117900.0,1.17107199]
[1752981977094,0.27547814,117910.0,117900.0,1.17107199]
[1752981977301,0.10594954,117910.0,117900.0,1.17107199]
[1752981977903,0.07274,117910.0,117900.0,1.17107199]
[1752981978294,0.03135,117910.0,117900.0,1.17107199]
[1752981978496,0.001,117910.0,117900.0,1.17107199]
[1752981979002,0.001,117910.0,117900.0,1.16136777]
[1752981979297,0.001,117910.0,117900.0,1.47136777]
[1752981980003,0.001,117910.0,117900.0,1.64310977]
[1752981981299,0.001,117910.0,117900.0,1.47220407]
[1752981981599,0.001,117910.0,117900.0,1.67310977]
[1752981982101,0.001,117910.0,117900.0,1.37310977]
[1752981982297,0.001,117910.0,117900.0,1.64310977]
[1752981983098,0.001,117910.0,117900.0,1.31310977]
[1752981983304,0.001,117910.0,117900.0,1.38310977]
[1752981983504,0.001,117910.0,117900.0,1.68310977]
[1752981984500,0.001,117910.0,117900.0,1.38310977]
[1752981984697,0.001,117910.0,117900.0,1.67310977]
[1752981985196,0.07371301,117930.0,117920.0,0.2527942]
[1752981985399,0.02359239,117930.0,117920.0,1.4216199]
[1752981985704,0.02359239,117930.0,117920.0,1.7616199]
[1752981986097,0.01700239,117930.0,117920.0,2.1224199]
[1752981986296,0.01700239,117930.0,117920.0,1.7824199]
[1752981986497,0.01700239,117930.0,117920.0,2.1424199]
[1752981986893,0.01700239,117930.0,117920.0,1.6115142]
[1752981987096,0.01700239,117930.0,117920.0,2.1324199]
[1752981987602,0.01700239,117930.0,117920.0,2.37127149]
[1752981987799,0.05466,117940.0,117930.0,0.2527798]
[1752981987994,0.26011028,117940.0,117930.0,0.7844855]
[1752981988304,0.27550028,117940.0,117930.0,0.7844855]
[1752981988900,0.27850028,117940.0,117930.0,0.7844855]
[1752981989200,0.26311028,117940.0,117930.0,0.6135798]
[1752981989600,0.27850028,117940.0,117930.0,0.7844855]
[1752981990998,0.27850028,117940.0,117930.0,0.03125]
[1752981990999,0.44640598,117940.0,117930.0,0.03125]
[1752981991203,0.80920598,117940.0,117930.0,0.01544]
[1752981991406,0.44840598,117940.0,117930.0,0.01544]
[1752981991597,0.44840598,117940.0,117910.0,0.02401]
[1752981991598,0.03435,117930.0,117910.0,0.02401]
[1752981991802,0.2585242,117920.0,117910.0,0.2281586]
[1752981992002,0.63632908,117920.0,117910.0,0.3990643]
[1752981992303,0.27552908,117920.0,117910.0,0.3990643]
[1752981993305,0.27552908,117920.0,117910.0,0.2281586]
[1752981993507,0.27552908,117920.0,117910.0,0.4216043]
[1752981993805,0.27552908,117920.0,117910.0,0.2281586]
[1752981994006,0.27552908,117920.0,117910.0,0.3990643]
[1752981994201,0.27552908,117920.0,117910.0,0.06063]
[1752981994403,0.27552908,117920.0,117910.0,0.3736843]
[1752981994602,0.27552908,117920.0,117910.0,0.03125]
[1752981994799,0.2038786,117910.0,117900.0,1.05922777]
[1752981995005,0.2585386,117910.0,117900.0,0.25084207]
[1752981995208,0.27556582,117910.0,117900.0,0.25084207]
[1752981995804,0.27656582,117910.0,117900.0,0.25084207]
[1752981996308,0.27656582,117910.0,117900.0,0.4511858]
[1752981996608,0.27656582,117910.0,117900.0,0.25084207]
[1752981996804,0.27656582,117910.0,117900.0,0.4511858]
[1752981997201,0.27656582,117910.0,117900.0,0.4521858]
[1752981998010,0.27656582,117910.0,117900.0,0.8129858]
[1752981998712,0.10703722,117910.0,117900.0,0.8150958]
[1752981998913,0.01802722,117910.0,117900.0,0.8150958]
[1752981999216,0.01802722,117910.0,117900.0,0.92475207]
[1752981999607,0.01802722,117910.0,117900.0,1.49507153]
[1752982000003,0.03006262,117930.0,117920.0,0.2361342]
[1752982000209,0.03006262,117930.0,117920.0,1.43003793]
[1752982000210,0.02347262,117930.0,117920.0,1.43003793]
[1752982000509,0.02347262,117930.0,117920.0,1.44083793]
[1752982000815,0.23391242,117930.0,117920.0,0.78682793]
[1752982001115,0.23391242,117930.0,117920.0,0.5864842]
[1752982001411,0.23391242,117930.0,117920.0,0.2089642]
[1752982002110,0.09050262,117930.0,117920.0,0.2280942]
[1752982002311,0.26000242,117930.0,117920.0,0.2379442]
[1752982002510,0.09050262,117930.0,117920.0,0.5987442]
[1752982003007,0.09050262,117930.0,117920.0,1.14119793]
[1752982003008,0.03506262,117930.0,117920.0,1.14119793]
[1752982003216,0.02847262,117930.0,117920.0,0.67002211]
[1752982003509,0.02847262,117930.0,117920.0,0.30711211]
[1752982003510,0.61980242,117930.0,117920.0,0.30711211]
[1752982003814,0.62080242,117930.0,117920.0,0.29726211]
[1752982004314,0.61880242,117930.0,117920.0,0.29726211]
[1752982004613,0.61780242,117930.0,117920.0,0.29926211]
[1752982005107,0.61880242,117930.0,117920.0,0.29826211]
[1752982005306,0.61880242,117930.0,117920.0,0.29726211]
[1752982005508,0.61980242,117930.0,117920.0,0.49760584]
[1752982006012,0.61980242,117930.0,117920.0,0.29726211]
[1752982006013,0.25900242,117930.0,117920.0,0.29726211]
[1752982006414,0.25900242,117930.0,117920.0,0.49760584]
[1752982007115,0.25900242,117930.0,117920.0,0.85840584]
[1752982007317,0.08950262,117930.0,117920.0,0.85840584]
[1752982007616,0.08950262,117930.0,117920.0,0.86825584]
[1752982008015,0.02547262,117930.0,117920.0,0.87036584]
[1752982008510,0.002,117930.0,117920.0,1.20036584]
[1752982008709,0.002,117930.0,117920.0,0.87036584]
[1752982008909,0.002,117930.0,117920.0,1.20036584]
[1752982009807,0.001,117930.0,117920.0,1.20036584]
[1752982010709,0.03157,117940.0,117930.0,0.2388698]
[1752982010913,0.03157,117940.0,117930.0,0.80001353]
[1752982011319,0.2010554,117940.0,117930.0,0.80001353]
[1752982011617,0.2201554,117940.0,117930.0,0.80001353]
[1752982011811,0.05067,117940.0,117930.0,0.80201353]
[1752982012816,0.06759587,117940.0,117930.0,0.80201353]
[1752982013019,0.04849587,117940.0,117930.0,0.80201353]
[1752982013222,0.04849587,117940.0,117930.0,0.80301353]
[1752982013714,0.01692587,117940.0,117930.0,0.80301353]
[1752982014015,0.2192911,117950.0,117940.0,0.1727554]
[1752982014228,0.06674383,117950.0,117940.0,0.5996354]
[1752982014421,0.06674383,117950.0,117940.0,0.79997913]
[1752982014622,0.06674383,117950.0,117940.0,0.5996354]
[1752982014822,0.06674383,117950.0,117940.0,0.79997913]
[1752982015426,0.09164383,117950.0,117940.0,0.79997913]
[1752982015614,0.09164383,117950.0,117940.0,0.80097913]
[1752982015921,0.09164383,117950.0,117940.0,1.46833913]
[1752982016121,0.06674383,117950.0,117940.0,1.46833913]
[1752982016722,0.06674383,117950.0,117940.0,1.2679954]
[1752982017024,0.06674383,117950.0,117940.0,1.46833913]
[1752982017721,0.03072,117960.0,117950.0,0.2367811]
[1752982018028,0.04763277,117960.0,117950.0,0.79996483]
[1752982018222,0.21708947,117960.0,117950.0,0.79996483]
[1752982018526,0.06673277,117960.0,117950.0,0.79996483]
[1752982019123,0.06773277,117960.0,117950.0,0.79996483]
[1752982019519,0.23718947,117960.0,117950.0,0.79996483]
[1752982019921,0.06873277,117960.0,117950.0,0.79996483]
[1752982020217,0.05182,117960.0,117950.0,0.79996483]
[1752982020429,0.2212767,117960.0,117950.0,0.79996483]
[1752982020626,0.2212767,117960.0,117950.0,0.5996211]
[1752982020824,0.2212767,117960.0,117950.0,0.79996483]
[1752982021022,0.2212767,117960.0,117950.0,0.5996211]
[1752982021327,0.05182,117960.0,117950.0,0.79996483]
[1752982021718,0.2461767,117960.0,117950.0,0.5996211]
[1752982021930,0.2623367,117960.0,117950.0,0.46700527]
[1752982022129,0.27922335,117960.0,117950.0,0.46700527]
[1752982022427,0.2623367,117960.0,117950.0,0.82780527]
[1752982023022,0.06798,117960.0,117950.0,0.62950154]
[1752982023322,0.03272,117960.0,117950.0,0.80029285]
[1752982023627,0.02619,117960.0,117950.0,0.62950154]
[1752982023932,0.02619,117960.0,117950.0,0.80029285]
[1752982024130,0.02619,117960.0,117950.0,0.62950154]
[1752982024430,0.02619,117960.0,117950.0,0.80029285]
[1752982024626,0.02619,117960.0,117950.0,0.62950154]
[1752982025032,0.02619,117960.0,117950.0,0.80029285]
[1752982025229,0.03272,117960.0,117950.0,0.80029285]
[1752982027531,0.03272,117960.0,117950.0,0.82309439]
[1752982028333,0.03272,117960.0,117950.0,0.65230308]
[1752982028532,0.03272,117960.0,117950.0,0.82309439]
[1752982029132,0.03272,117960.0,117950.0,0.65230308]
[1752982029133,0.2021767,117960.0,117950.0,0.65230308]
[1752982029427,0.2021767,117960.0,117950.0,0.82309439]
[1752982029428,0.2212767,117960.0,117950.0,0.82309439]
[1752982029626,0.2212767,117960.0,117950.0,0.65230308]
[1752982029824,0.05182,117960.0,117950.0,0.82309439]
[1752982030228,0.04858,117960.0,117950.0,0.82309439]
[1752982031129,0.04858,117960.0,117950.0,0.8306949]
[1752982031831,0.03272,117960.0,117950.0,0.8306949]
[1752982032237,0.02619,117960.0,117950.0,0.8306949]
[1752982032530,0.002,117960.0,117950.0,1.04717568]
[1752982032736,0.002,117960.0,117950.0,0.87638437]
[1752982032939,0.002,117960.0,117950.0,1.36717568]
[1752982033133,0.2001486,117980.0,117970.0,0.2000123]
[1752982033330,0.200148,117980.0,117970.0,1.13518361]
[1752982033530,0.200148,117980.0,117970.0,0.61721064]
[1752982033725,0.200148,117980.0,117970.0,0.25641064]
[1752982033726,0.260308,117980.0,117970.0,0.25641064]
[1752982033940,0.260308,117980.0,117970.0,0.26652064]
[1752982034333,0.263308,117980.0,117970.0,0.26652064]
[1752982034528,0.266308,117980.0,117970.0,0.43731195]
[1752982034739,0.266308,117980.0,117970.0,0.26652064]
[1752982035042,0.266308,117980.0,117970.0,0.43731195]
[1752982035338,0.627108,117980.0,117970.0,0.4677141]
[1752982035840,0.79789931,117980.0,117970.0,0.24266289]
[1752982036142,0.79789931,117980.0,117970.0,0.26635289]
[1752982036336,0.79789931,117980.0,117970.0,0.29692289]
[1752982036337,0.627108,117980.0,117970.0,0.29692289]
[1752982036538,0.627108,117980.0,117970.0,0.4677142]
[1752982036847,0.266308,117980.0,117970.0,0.4677142]
[1752982037145,0.266308,117980.0,117970.0,0.27410445]
[1752982037337,0.266308,117980.0,117970.0,0.29692574]
[1752982037535,0.627108,117980.0,117970.0,0.29692574]
[1752982037736,0.266308,117980.0,117970.0,0.47421301]
[1752982038043,0.266308,117980.0,117970.0,0.27410445]
[1752982039737,0.627108,117980.0,117970.0,0.27410445]
[1752982040246,0.266308,117980.0,117970.0,0.27410445]
[1752982041049,0.266308,117980.0,117970.0,0.29693139]
[1752982042041,1.314308,117980.0,117970.0,0.0428306]
[1752982042241,1.51441656,117980.0,117970.0,0.0428306]
[1752982042546,1.53322098,117980.0,117970.0,0.0428306]
[1752982042943,1.33311242,117980.0,117970.0,0.0675206]
[1752982043350,1.33311242,117980.0,117970.0,0.253323]
[1752982043647,0.97231242,117980.0,117970.0,0.253323]
[1752982043849,1.33311242,117980.0,117970.0,0.0838806]
[1752982046053,1.33311242,117980.0,117970.0,0.0675206]
[1752982046350,1.33311242,117980.0,117970.0,0.0428306]
[1752982047548,1.33311242,117980.0,117970.0,0.43707156]
[1752982047751,1.33311242,117980.0,117970.0,0.0838806]
[1752982049049,0.97231242,117980.0,117970.0,0.0838806]
[1752982049253,1.33311242,117980.0,117970.0,0.0838806]
[1752982049656,0.97231242,117980.0,117970.0,0.253323]
[1752982049954,1.33311242,117980.0,117970.0,0.253323]
[1752982050356,1.33311242,117980.0,117970.0,0.0838806]
[1752982050762,1.33311242,117980.0,117970.0,0.2533231]
[1752982051556,1.33311242,117980.0,117970.0,0.2686831]
[1752982051858,0.97231242,117980.0,117970.0,0.27625455]
[1752982052057,1.33311242,117980.0,117970.0,0.26871305]
[1752982052252,0.97231242,117980.0,117970.0,0.27625455]
[1752982052455,1.33311242,117980.0,117970.0,0.27625455]
[1752982052661,0.97231242,117980.0,117970.0,0.27625455]
[1752982052857,0.97231242,117980.0,117970.0,0.48621311]
[1752982053158,0.97763242,117980.0,117970.0,0.47636311]
[1752982053453,0.97815242,117980.0,117970.0,0.47636311]
[1752982053652,0.97815242,117980.0,117970.0,0.27625455]
[1752982053653,0.28511242,117980.0,117970.0,0.27625455]
[1752982053860,0.97771242,117980.0,117970.0,0.47636311]
[1752982054463,0.97571242,117980.0,117970.0,0.27625455]
[1752982054656,0.28311242,117980.0,117970.0,0.27625455]
[1752982054962,0.97547242,117980.0,117970.0,0.27625455]
[1752982055163,0.28211242,117980.0,117970.0,0.27625455]
[1752982055358,0.97447242,117980.0,117970.0,0.27625455]
[1752982056962,0.97447242,117980.0,117970.0,0.44701048]
[1752982057260,0.955668,117980.0,117970.0,0.44701048]
[1752982057460,0.97219603,117980.0,117970.0,0.41660843]
[1752982057859,0.27983603,117980.0,117970.0,0.41660843]
[1752982058061,0.08550803,117980.0,117970.0,0.78725843]
[1752982058258,0.06934803,117980.0,117970.0,1.10725843]
[1752982058658,0.05024803,117980.0,117970.0,1.10725843]
[1752982058864,0.05024803,117980.0,117970.0,1.1529479]
[1752982059065,0.04924803,117980.0,117970.0,1.1529479]
[1752982059365,0.21867613,117980.0,117970.0,0.98219197]
[1752982059560,0.23371613,117980.0,117970.0,1.1529479]
[1752982059863,0.2363781,117980.0,117970.0,1.1529479]
[1752982060060,0.2596181,117980.0,117970.0,0.7921479]
[1752982060260,0.27614822,117980.0,117970.0,1.1529479]
[1752982060559,0.27514822,117980.0,117970.0,1.1529479]
[1752982060957,0.27414822,117980.0,117970.0,1.10825843]
[1752982063867,0.27414822,117980.0,117970.0,0.9375025]
[1752982064166,0.27414822,117980.0,117970.0,1.10825843]
[1752982065362,0.27414822,117980.0,117970.0,0.9375025]
[1752982065567,0.27414822,117980.0,117970.0,1.10825843]
[1752982065768,0.27414822,117980.0,117970.0,0.74745843]
[1752982066161,0.27414822,117980.0,117970.0,0.5767025]
[1752982066162,0.29274526,117980.0,117970.0,0.5767025]
[1752982066465,0.29274526,117980.0,117970.0,0.74745843]
[1752982066862,0.29274526,117980.0,117970.0,0.5767025]
[1752982067063,0.29274526,117980.0,117970.0,0.74745843]
[1752982067263,0.29274526,117980.0,117970.0,1.10825843]
[1752982068169,0.29274526,117980.0,117970.0,0.9375025]
[1752982068368,0.25378526,117980.0,117970.0,0.9375025]
[1752982068667,0.25378526,117980.0,117970.0,1.10825843]
[1752982069762,0.04725012,117980.0,117970.0,1.12563927]
[1752982069969,0.04072012,117980.0,117970.0,1.12563927]
[1752982070164,0.04072012,117980.0,117970.0,0.95488334]
[1752982070467,0.21014822,117980.0,117970.0,0.95488334]
[1752982070666,0.21688822,117980.0,117970.0,1.12563927]
[1752982070866,0.01653012,117980.0,117970.0,1.12563927]
[1752982071061,0.2411824,117990.0,117980.0,0.2016182]
[1752982071261,0.21535502,117990.0,117980.0,1.10631413]
[1752982071467,0.04593602,117990.0,117980.0,1.79431413]
[1752982071766,0.04593602,117990.0,117980.0,1.86247975]
[1752982072068,0.04593602,117990.0,117980.0,1.90816922]
[1752982072268,0.04693602,117990.0,117980.0,1.86247975]
[1752982073073,0.04693602,117990.0,117980.0,1.90816922]
[1752982073273,0.03041,117990.0,117980.0,1.73741329]
[1752982073466,0.03041,117990.0,117980.0,1.90816922]
[1752982073965,0.02941,118000.0,117990.0,0.2347438]
[1752982074164,0.04592997,118000.0,117990.0,1.09629973]
[1752982074960,0.01651997,118000.0,117990.0,1.09629973]
[1752982075165,0.01851997,118000.0,117990.0,1.09629973]
[1752982075571,0.002,118000.0,117990.0,1.1419892]
[1752982076172,0.002,118000.0,117990.0,1.09629973]
[1752982076173,0.02467,118000.0,117990.0,1.09629973]
[1752982076373,0.03141,118000.0,117990.0,1.09629973]
[1752982079376,0.03241,118000.0,117990.0,1.09629973]
[1752982080679,0.03241,118000.0,117990.0,0.9255438]
[1752982080880,0.03241,118000.0,117990.0,1.09629973]
[1752982081081,0.2018094,118000.0,117990.0,1.09629973]
[1752982081781,0.03241,118000.0,117990.0,1.11369178]
[1752982082681,0.2018094,118000.0,117990.0,1.11369178]
[1752982086480,0.21831672,118000.0,117990.0,1.11369178]
[1752982086680,0.2018094,118000.0,117990.0,1.11369178]
[1752982087184,0.21831881,118000.0,117990.0,1.11369178]
[1752982087585,0.04891941,118000.0,117990.0,1.11369178]
[1752982087983,0.21831881,118000.0,117990.0,1.11369178]
[1752982088890,0.04891941,118000.0,117990.0,1.11369178]
[1752982090683,0.21831891,118000.0,117990.0,1.11369178]
[1752982090885,0.04891941,118000.0,117990.0,1.62005585]
[1752982091181,0.04891941,118000.0,117990.0,1.79081178]
[1752982091686,0.04891941,118000.0,117990.0,1.62005585]
[1752982091887,0.04891941,118000.0,117990.0,1.79081178]
[1752982093587,0.04891941,118000.0,117990.0,1.78985178]
[1752982094983,0.21831891,118000.0,117990.0,1.61909585]
[1752982095187,0.21831891,118000.0,117990.0,1.78985178]
[1752982095686,0.21831891,118000.0,117990.0,1.11369178]
[1752982095891,0.04891941,118000.0,117990.0,1.78821178]
[1752982098289,0.21831881,118000.0,117990.0,1.78821178]
[1752982098995,0.04891941,118000.0,117990.0,1.78821178]
[1752982100098,0.04891941,118000.0,117990.0,1.61745585]
[1752982100299,0.06493941,118000.0,117990.0,1.66314532]
[1752982100495,0.06493941,118000.0,117990.0,1.83390125]
[1752982101103,0.06493941,118000.0,117990.0,1.78821178]
[1752982103604,0.06493941,118000.0,117990.0,1.61745585]
[1752982103800,0.06493941,118000.0,117990.0,1.78821178]
[1752982104999,0.04891941,118000.0,117990.0,1.78821178]
[1752982106802,0.01950941,118000.0,117990.0,1.78821178]
[1752982107307,0.04339941,118000.0,117990.0,1.78821178]
[1752982107707,0.05015941,118000.0,117990.0,1.78821178]
[1752982108102,0.05015941,118000.0,117990.0,1.83390125]
[1752982111105,0.05015941,118000.0,117990.0,1.78821178]
[1752982112306,0.05015941,118000.0,117990.0,1.61745585]
[1752982112508,0.05015941,118000.0,117990.0,1.78821178]
[1752982113415,0.05015941,118000.0,117990.0,1.83392767]
[1752982113803,0.05015941,118000.0,117990.0,1.66317174]
[1752982114104,0.05015941,118000.0,117990.0,1.83392767]
[1752982116613,0.05015941,118000.0,117990.0,1.82452767]
[1752982118914,0.05015941,118000.0,117990.0,1.82312767]
[1752982119309,0.05015941,118000.0,117990.0,1.65237174]
[1752982119614,0.05015941,118000.0,117990.0,1.82312767]
[1752982120312,0.05015941,118000.0,117990.0,1.65237174]
[1752982120614,0.05015941,118000.0,117990.0,1.82312767]
[1752982120913,0.05015941,118000.0,117990.0,1.90833848]
[1752982121114,0.03365,118000.0,117990.0,1.90833848]
[1752982123417,0.03365,118000.0,117990.0,1.90797848]
[1752982124317,0.03365,118000.0,117990.0,1.86226259]
[1752982124909,0.03365,118000.0,117990.0,1.19890259]
[1752982125114,0.03365,118000.0,117990.0,1.86222259]
[1752982125313,0.02689,118000.0,117990.0,1.86222259]
[1752982126121,0.03365,118000.0,117990.0,1.86222259]
[1752982126420,0.02689,118000.0,117990.0,1.86222259]
[1752982127817,0.03365,118000.0,117990.0,1.86222259]
[1752982129922,0.003,118000.0,117990.0,1.86222259]
[1752982130513,0.03314,118000.0,117990.0,1.86222259]
[1752982131724,0.03314,118000.0,117990.0,1.60625585]
[1752982131922,0.03314,118000.0,117990.0,1.86222259]
[1752982132425,0.03314,118000.0,117990.0,1.85750259]
[1752982135329,0.05013317,118000.0,117990.0,1.85750259]
[1752982135730,0.03314,118000.0,117990.0,1.85750259]
[1752982136230,0.05013324,118000.0,117990.0,1.85750259]
[1752982136926,0.04813324,118000.0,117990.0,1.85750259]
[1752982137132,0.21853274,118000.0,117990.0,1.85750259]
[1752982137431,0.21753274,118000.0,117990.0,1.85750259]
[1752982138935,0.04813324,118000.0,117990.0,1.85750259]
[1752982140134,0.03114,118000.0,117990.0,1.85750259]
[1752982143431,0.2005394,118000.0,117990.0,1.85750259]
[1752982143633,0.03114,118000.0,117990.0,1.85750259]
[1752982144037,0.2005394,118000.0,117990.0,1.85750259]
[1752982144433,0.2201294,118000.0,117990.0,1.19890259]
[1752982144639,0.2603794,118000.0,117990.0,1.52110259]
[1752982144938,0.2603794,118000.0,117990.0,1.90110259]
[1752982145641,0.27737707,118000.0,117990.0,1.24890259]
[1752982145939,0.2603794,118000.0,117990.0,1.90054259]
[1752982146440,0.27737721,118000.0,117990.0,1.90054259]
[1752982146838,0.2603794,118000.0,117990.0,1.90054259]
[1752982147439,0.27756487,118000.0,117990.0,1.90054259]
[1752982147738,0.27756487,118000.0,117990.0,1.64457585]
[1752982147939,0.27756487,118000.0,117990.0,1.90054259]
[1752982148138,0.27756499,118000.0,117990.0,1.90054259]
[1752982148336,0.27756506,118000.0,117990.0,1.90054259]
[1752982149441,0.2603794,118000.0,117990.0,1.90054259]
[1752982150239,0.27756515,118000.0,117990.0,1.64457585]
[1752982150440,0.27756515,118000.0,117990.0,1.90054259]
[1752982151042,0.27756515,118000.0,117990.0,1.94628208]
[1752982151336,0.27756515,118000.0,117990.0,1.29858534]
[1752982151540,0.40554852,118000.0,117990.0,1.42628871]
[1752982151749,0.27756515,118000.0,117990.0,1.09680871]
[1752982152242,0.27756515,118000.0,117990.0,0.73600871]
[1752982153444,0.27756515,118000.0,117990.0,0.41600871]
[1752982153647,0.27756515,118000.0,117990.0,0.78600871]
[1752982155240,0.27756515,118000.0,117990.0,0.65802534]
[1752982155442,0.27756515,118000.0,117990.0,0.73600871]
[1752982156147,0.27756515,118000.0,117990.0,0.60802534]
[1752982156346,0.27756515,118000.0,117990.0,0.73600871]
[1752982156752,0.27756515,118000.0,117990.0,0.69026922]
[1752982157348,0.27756515,118000.0,117990.0,0.5448938]
[1752982157549,0.27756515,118000.0,117990.0,0.67287717]
[1752982159143,0.6211794,118000.0,117990.0,0.37548]
[1752982159448,0.63835529,118000.0,117990.0,0.67287717]
[1752982159652,0.63835529,118000.0,117990.0,0.5448938]
[1752982159848,0.63835529,118000.0,117990.0,0.67287717]
[1752982160752,0.63835529,118000.0,117990.0,0.37548]
[1752982161049,0.63835529,118000.0,117990.0,0.71861666]
[1752982165152,0.63835529,118000.0,117990.0,0.59063329]
[1752982165351,0.63835529,118000.0,117990.0,0.71861666]
[1752982165654,0.63835529,118000.0,117990.0,0.59063329]
[1752982165955,0.63835529,118000.0,117990.0,0.54920286]
[1752982166154,0.63835529,118000.0,117990.0,0.71861666]
[1752982167655,0.27755529,118000.0,117990.0,0.71861666]
[1752982167856,0.63835529,118000.0,117990.0,0.71861666]
[1752982168055,0.27755529,118000.0,117990.0,0.59063329]
[1752982168256,0.27755529,118000.0,117990.0,0.71861666]
[1752982169057,0.27755529,118000.0,117990.0,0.59063329]
[1752982169252,0.27755529,118000.0,117990.0,0.71861666]
[1752982169556,0.27755529,118000.0,117990.0,0.59063329]
[1752982169855,0.27755529,118000.0,117990.0,0.71861666]
[1752982171063,0.27754787,118000.0,117990.0,0.71861666]
[1752982171251,0.27754787,118000.0,117990.0,0.84660003]
[1752982171652,0.2603794,118000.0,117990.0,1.21725003]
[1752982172153,0.2775489,118000.0,117990.0,1.21725003]
[1752982172757,0.2775489,118000.0,117990.0,0.85645003]
[1752982174559,0.2775489,118000.0,117990.0,0.60048329]
[1752982174857,0.2775489,118000.0,117990.0,0.72846666]
[1752982175057,0.2775489,118000.0,117990.0,0.85645003]
[1752982175258,0.2775489,118000.0,117990.0,0.72846666]
[1752982176554,0.2775489,118000.0,117990.0,0.71861666]
[1752982177360,0.2775489,118000.0,117990.0,0.59063329]
[1752982177558,0.2775489,118000.0,117990.0,0.71861666]
[1752982178451,0.2775489,118000.0,117990.0,0.72846666]
[1752982180964,0.2775489,118000.0,117990.0,0.71861666]
[1752982182366,0.6383489,118000.0,117990.0,0.71861666]
[1752982182664,0.2775489,118000.0,117990.0,0.71861666]
[1752982183265,0.2775489,118000.0,117990.0,0.42121949]
[1752982183466,0.2775489,118000.0,117990.0,0.54920286]
[1752982183966,0.6383489,118000.0,117990.0,0.54920286]
[1752982184168,0.6383489,118000.0,117990.0,0.71861666]
[1752982184667,0.6383489,118000.0,117990.0,0.42121949]
[1752982184968,0.6383489,118000.0,117990.0,0.54920286]
[1752982186069,0.89431564,118000.0,117990.0,0.08545949]
[1752982186261,0.89431564,118000.0,117990.0,0.21344286]
[1752982186469,0.76633227,118000.0,117990.0,0.21344286]
[1752982187474,0.76633227,118000.0,117990.0,0.08545949]
[1752982187677,0.76633227,118000.0,117990.0,0.21344286]
[1752982187879,0.76633227,118000.0,117990.0,0.16770337]
[1752982189682,0.6383489,118000.0,117990.0,0.03972]
[1752982189878,0.6383489,118000.0,117990.0,0.16770337]
[1752982190184,0.76633227,118000.0,117990.0,0.16770337]
[1752982191283,0.76633227,118000.0,117990.0,0.03972]
[1752982191487,0.76633227,118000.0,117990.0,0.16770337]
[1752982192478,0.76633227,118000.0,117990.0,0.18346337]
[1752982192674,1.40173227,118000.0,117990.0,0.18346337]
[1752982194681,1.2737489,118000.0,117990.0,0.18346337]
[1752982195085,1.40173227,118000.0,117990.0,0.18346337]
[1752982195479,1.04093227,118000.0,117990.0,0.18346337]
[1752982195680,1.40173227,118000.0,117990.0,0.18346337]
[1752982196076,1.40173227,118000.0,117990.0,0.05548]
[1752982196281,1.40173227,118000.0,117990.0,0.18346337]
[1752982197286,1.40173227,118000.0,117990.0,0.16770337]
[1752982198980,1.40173227,118000.0,117990.0,0.03972]
[1752982199188,1.40173227,118000.0,117990.0,0.16770337]
[1752982200391,1.52971564,118000.0,117990.0,0.14441337]
[1752982200593,1.52971564,118000.0,117990.0,0.12798337]
[1752982200793,0.2584138,117990.0,117980.0,0.46695668]
[1752982200988,0.38639717,117990.0,117980.0,0.59494005]
[1752982201194,0.27570295,117990.0,117980.0,0.54920056]
[1752982201895,0.90778295,117990.0,117980.0,0.54920056]
[1752982202193,0.90778295,117990.0,117980.0,0.55020056]
[1752982202697,0.27570295,117990.0,117980.0,0.55020056]
[1752982202898,0.90734295,117990.0,117980.0,0.55800056]
[1752982203298,0.27570295,117990.0,117980.0,0.55800056]
[1752982203498,0.27570295,117990.0,117980.0,0.58800056]
[1752982203693,0.27570295,117990.0,117980.0,1.37663393]
[1752982203694,0.21708295,117990.0,117980.0,1.37663393]
[1752982203999,0.21708295,117990.0,117980.0,1.42237342]
[1752982204296,0.21708295,117990.0,117980.0,1.29439005]
[1752982205192,0.21708295,117990.0,117980.0,1.24865056]
[1752982205392,0.21708295,117990.0,117980.0,1.24965056]
[1752982205592,0.21708295,117990.0,117980.0,1.29539005]
[1752982207398,0.21708295,117990.0,117980.0,0.99368382]
[1752982207603,0.21708295,117990.0,117980.0,1.24965056]
[1752982207998,0.21708295,117990.0,117980.0,1.88129056]
[1752982209700,0.21708295,117990.0,117980.0,2.00927393]
[1752982209902,0.21708295,117990.0,117980.0,1.88129056]
[1752982211009,0.04766915,117990.0,117980.0,1.88129056]
[1752982211308,0.03038,117990.0,117980.0,1.88129056]
[1752982211608,0.1997938,117990.0,117980.0,1.88129056]
[1752982212904,0.1997938,117990.0,117980.0,1.62532382]
[1752982213109,0.1997938,117990.0,117980.0,1.88129056]
[1752982215509,0.1997938,117990.0,117980.0,2.24209056]
[1752982215806,0.1997938,117990.0,117980.0,1.98612382]
[1752982216012,0.1997938,117990.0,117980.0,2.24209056]
[1752982219117,0.2844933,118000.0,117990.0,0.2349038]
[1752982219317,0.30189096,118000.0,117990.0,1.17167054]
[1752982220526,0.30189096,118000.0,117990.0,1.17947054]
[1752982221415,0.32137096,118000.0,117990.0,1.05148717]
[1752982221616,0.36088096,118000.0,117990.0,1.67864717]
[1752982223821,0.36088096,118000.0,117990.0,1.31784717]
[1752982224020,0.31852806,118000.0,117990.0,1.67864717]
[1752982225214,0.31852806,118000.0,117990.0,1.69575604]
[1752982225415,0.25330596,118000.0,117990.0,1.69575604]
[1752982225616,0.06725766,118000.0,117990.0,1.82373941]